bitfinex/quotes_SOLUSD_20241101
["timestamp","ask_amount","ask_price","bid_price","bid_amount"]
[1730461491679,16.82274153,167.96,167.91,31.71274153]
[1730461495159,10.86884153,167.95,167.91,14.8884]
[1730461496159,10.86884153,167.95,167.91,20.8439]
[1730461496568,16.82314153,167.95,167.91,14.8884]
[1730461496767,10.86884153,167.94,167.91,14.8884]
[1730461498475,10.86884153,167.94,167.89,10.86884153]
[1730461498686,16.82354153,167.94,167.89,16.82504153]
[1730461499858,10.86884153,167.93,167.88,10.86884153]
[1730461500489,16.82354153,167.94,167.89,10.86884153]
[1730461501170,16.82354153,167.94,167.89,16.82494153]
[1730461501564,5.9547,167.94,167.9,10.86884153]
[1730461501780,16.82304153,167.95,167.9,10.86884153]
[1730461503481,16.82304153,167.95,167.89,25.75954153]
[1730461503683,10.86884153,167.94,167.89,14.8907]
[1730461504475,10.86884153,167.93,167.89,14.8907]
[1730461504784,16.82374153,167.93,167.89,14.8907]
[1730461505866,16.82374153,167.93,167.88,5.9563]
[1730461505867,10.86884153,167.91,167.86,44.28451247]
[1730461506072,10.86884153,167.89,167.86,14.8932]
[1730461506384,10.86884153,167.89,167.84,5.9579]
[1730461506582,20.842,167.93,167.83,31.72294153]
[1730461506583,10.86884153,167.88,167.83,31.72294153]
[1730461506886,10.86884153,167.87,167.83,20.8541]
[1730461507873,10.86884153,167.88,167.83,31.72294153]
[1730461508188,5.9559,167.9,167.83,31.72294153]
[1730461508189,10.86884153,167.89,167.83,31.72294153]
[1730461508383,5.9559,167.9,167.83,31.72294153]
[1730461508384,10.86884153,167.88,167.83,31.72294153]
[1730461508563,10.86884153,167.88,167.83,31.72304153]
[1730461509584,16.82564153,167.88,167.83,31.72304153]
[1730461511375,10.86884153,167.87,167.83,20.8542]
[1730461512788,5.9568,167.88,167.83,20.8542]
[1730461512789,10.86884153,167.86,167.83,20.8542]
[1730461515068,10.86884153,167.86,167.83,14.8958]
[1730461515669,10.86884153,167.85,167.81,5.9591]
[1730461516083,10.86884153,167.85,167.81,20.8569]
[1730461516387,10.86884153,167.86,167.81,31.72574153]
[1730461516568,10.86884153,167.83,167.78,31.72884153]
[1730461516764,10.86884153,167.81,167.78,20.86]
[1730461516994,16.6198,167.85,167.8,10.86884153]
[1730461517215,22.5777,167.85,167.8,10.86884153]
[1730461517897,16.82674153,167.85,167.8,10.86884153]
[1730461518184,10.86884153,167.84,167.79,10.86884153]
[1730461518493,10.86884153,167.84,167.78,31.72884153]
[1730461519579,5.9584,167.83,167.78,31.72884153]
[1730461519781,16.82684153,167.84,167.79,10.86884153]
[1730461520094,5.958,167.84,167.8,10.86884153]
[1730461520998,16.82684153,167.84,167.79,16.82834153]
[1730461521471,10.86884153,167.85,167.8,10.86884153]
[1730461522170,10.86884153,167.84,167.79,31.72784153]
[1730461523588,10.86884153,167.83,167.79,20.859]
[1730461524684,10.86884153,167.83,167.79,31.72784153]
[1730461525498,16.82724153,167.83,167.79,20.859]
[1730461526476,16.82724153,167.83,167.79,25.76834153]
[1730461527483,10.86884153,167.83,167.79,25.76834153]
[1730461527685,16.82694153,167.84,167.79,25.76834153]
[1730461528493,10.86884153,167.83,167.79,20.8593]
[1730461529385,10.86884153,167.82,167.79,20.8593]
[1730461529706,10.86884153,167.82,167.79,14.8995]
[1730461530394,16.82724153,167.83,167.79,14.8995]
[1730461532602,5.9584,167.83,167.79,25.76834153]
[1730461533311,16.82724153,167.83,167.79,14.8995]
[1730461533603,16.82724153,167.83,167.79,25.76834153]
[1730461533806,5.9584,167.83,167.79,31.72814153]
[1730461533985,16.82714153,167.84,167.8,10.86884153]
[1730461534314,10.86884153,167.86,167.81,10.86884153]
[1730461534799,5.9577,167.85,167.81,10.86884153]
[1730461535102,5.9574,167.86,167.82,10.86884153]
[1730461535800,16.82624153,167.86,167.81,31.72564153]
[1730461536697,10.86884153,167.84,167.8,10.86884153]
[1730461537087,10.86884153,167.84,167.79,10.86884153]
[1730461537287,10.86884153,167.83,167.79,10.86884153]
[1730461538608,10.86884153,167.83,167.78,31.72934153]
[1730461538992,16.82734153,167.83,167.78,31.72934153]
[1730461541306,10.86884153,167.82,167.78,31.72934153]
[1730461542490,16.82754153,167.82,167.78,31.72934153]
[1730461543392,16.82754153,167.82,167.78,14.9004]
[1730461543611,10.86884153,167.79,167.77,6.5764198]
[1730461543806,10.86884153,167.8,167.77,6.5764198]
[1730461544308,10.86884153,167.81,167.77,6.5764198]
[1730461544491,16.82754153,167.82,167.77,17.44526133]
[1730461544699,10.86884153,167.79,167.77,0.6159198]
[1730461544902,10.86884153,167.81,167.77,0.6159198]
[1730461545203,10.86884153,167.82,167.77,32.34636133]
[1730461545597,10.86884153,167.82,167.78,10.86884153]
[1730461546594,10.86884153,167.82,167.77,21.4775198]
[1730461546595,16.82764153,167.82,167.77,32.34636133]
[1730461547225,10.86884153,167.81,167.77,32.34636133]
[1730461547798,10.86884153,167.81,167.77,21.4775198]
[1730461548417,10.86884153,167.79,167.77,0.6159198]
[1730461550109,10.86884153,167.78,167.77,0.6159198]
[1730461551916,10.86884153,167.8,167.77,0.6159198]
[1730461552402,16.82834153,167.8,167.77,0.6159198]
[1730461553605,10.86884153,167.82,167.77,17.44526133]
[1730461554204,10.86884153,167.81,167.77,17.44526133]
[1730461554403,10.86884153,167.81,167.77,0.6159198]
[1730461554606,10.86884153,167.81,167.77,6.5764198]
[1730461555813,16.82794153,167.81,167.77,6.5764198]
[1730461556518,10.86884153,167.82,167.78,10.86884153]
[1730461557419,16.82744153,167.83,167.78,10.86884153]
[1730461557825,16.82744153,167.83,167.79,5.9598]
[1730461558216,5.9586,167.83,167.79,16.82864153]
[1730461558420,16.82744153,167.83,167.78,10.86884153]
[1730461558603,16.82744153,167.83,167.78,16.82894153]
[1730461560217,10.86884153,167.82,167.78,5.9601]
[1730461561523,10.86884153,167.83,167.78,5.9601]
[1730461561737,10.86884153,167.83,167.78,31.72934153]
[1730461562240,10.86884153,167.86,167.8,10.86884153]
[1730461562431,10.86884153,167.86,167.81,5.9591]
[1730461563443,10.86884153,167.85,167.81,14.8978]
[1730461563734,10.86884153,167.84,167.81,14.8978]
[1730461564517,10.86884153,167.84,167.8,5.9594]
[1730461565630,16.82694153,167.84,167.8,5.9594]
[1730461567123,5.9581,167.84,167.8,10.86884153]
[1730461567336,10.86884153,167.86,167.81,10.86884153]
[1730461567630,10.86884153,167.86,167.78,20.86]
[1730461567631,16.82584153,167.87,167.82,10.86884153]
[1730461568728,10.86884153,167.86,167.81,31.72574153]
[1730461569830,16.82584153,167.87,167.82,10.86884153]
[1730461570134,10.86884153,167.86,167.81,31.72574153]
[1730461570432,10.86884153,167.85,167.81,20.8569]
[1730461571013,14.8904,167.9,167.81,20.8569]
[1730461571014,10.86884153,167.86,167.81,31.72574153]
[1730461571531,10.86884153,167.87,167.82,10.86884153]
[1730461571832,16.82504153,167.89,167.84,10.86884153]
[1730461573723,10.86884153,167.88,167.83,16.82704153]
[1730461573921,5.9569,167.87,167.83,16.82704153]
[1730461574321,10.86884153,167.86,167.83,5.9582]
[1730461575630,10.86884153,167.86,167.82,20.8556]
[1730461575817,16.82574153,167.87,167.82,31.72444153]
[1730461576019,5.9569,167.87,167.83,10.86884153]
[1730461576432,16.82574153,167.87,167.82,31.72444153]
[1730461578832,10.86884153,167.86,167.82,20.8556]
[1730461580038,16.82634153,167.86,167.8,6.1946]
[1730461580240,10.86884153,167.84,167.79,16.82834153]
[1730461580421,10.86884153,167.92,167.83,10.86884153]
[1730461580737,10.86884153,167.92,167.86,10.86884153]
[1730461580929,10.86884153,167.91,167.85,10.86884153]
[1730461581333,10.86884153,167.92,167.86,10.86884153]
[1730461581531,5.9555,167.91,167.87,10.86884153]
[1730461582137,10.86884153,167.95,167.89,10.86884153]
[1730461583140,10.86884153,167.94,167.89,10.86884153]
[1730461583524,10.86884153,167.92,167.87,5.9569]
[1730461583728,10.86884153,167.92,167.86,31.71944153]
[1730461584026,10.86884153,167.92,167.86,20.8506]
[1730461584236,10.86884153,167.92,167.87,10.86884153]
[1730461584940,10.86884153,167.93,167.87,10.86884153]
[1730461585142,5.9552,167.92,167.87,10.86884153]
[1730461585832,16.82404153,167.92,167.86,31.71944153]
[1730461586031,10.86884153,167.91,167.86,31.71944153]
[1730461586740,20.839,167.96,167.84,10.86884153]
[1730461586741,10.86884153,167.89,167.84,10.86884153]
[1730461586949,10.86884153,167.9,167.84,10.86884153]
[1730461587531,10.86884153,167.89,167.84,10.86884153]
[1730461588145,5.9569,167.87,167.83,10.86884153]
[1730461588648,16.82574153,167.87,167.81,23.07024153]
[1730461589553,16.82574153,167.87,167.82,10.86884153]
[1730461589836,5.9569,167.87,167.84,10.86884153]
[1730461590543,5.9569,167.87,167.85,10.86884153]
[1730461590731,10.86884153,167.89,167.84,10.86884153]
[1730461590934,16.82504153,167.89,167.84,10.86884153]
[1730461591518,10.86884153,167.93,167.87,10.86884153]
[1730461591720,10.86884153,167.93,167.88,10.86884153]
[1730461592541,5.9545,167.94,167.9,10.86884153]
[1730461592752,30.0,167.91,167.89,10.86884153]
[1730461593325,5.955,167.93,167.89,10.86884153]
[1730461593628,10.86884153,167.91,167.86,10.86884153]
[1730461594830,5.9559,167.9,167.86,10.86884153]
[1730461596045,5.9559,167.9,167.87,10.86884153]
[1730461596751,5.9559,167.9,167.88,10.86884153]
[1730461596936,5.9555,167.91,167.88,10.86884153]
[1730461599354,16.82404153,167.92,167.87,10.86884153]
[1730461601451,5.9552,167.92,167.88,10.86884153]
[1730461606857,16.82374153,167.93,167.88,16.82524153]
[1730461607036,16.82374153,167.93,167.89,10.86884153]
[1730461607437,5.9549,167.93,167.89,10.86884153]
[1730461607650,5.9549,167.93,167.9,10.86884153]
[1730461608560,5.9545,167.94,167.9,10.86884153]
[1730461609062,16.82334153,167.94,167.89,10.86884153]
[1730461609843,16.82334153,167.94,167.88,31.71684153]
[1730461610060,10.86884153,167.93,167.88,31.71684153]
[1730461610437,16.82384153,167.93,167.88,31.71684153]
[1730461612469,10.86884153,167.92,167.87,16.95904153]
[1730461613136,16.82384153,167.93,167.88,10.86884153]
[1730461615939,10.86884153,167.94,167.89,10.86884153]
[1730461616443,10.86884153,167.96,167.9,10.86884153]
[1730461617650,20.8357,167.98,167.9,10.86884153]
[1730461617651,10.86884153,167.95,167.9,10.86884153]
[1730461618460,5.9534,167.97,167.89,20.8468]
[1730461618461,10.86884153,167.94,167.89,31.71564153]
[1730461619048,10.86884153,167.94,167.89,25.75954153]
[1730461619653,5.9548,167.93,167.89,25.75954153]
[1730461621175,16.82364153,167.93,167.88,10.86884153]
[1730461621468,16.82364153,167.93,167.86,31.71924153]
[1730461621469,10.86884153,167.92,167.86,31.71924153]
[1730461621863,16.82364153,167.93,167.87,10.86884153]
[1730461623569,10.86884153,167.92,167.86,31.71924153]
[1730461624162,10.86884153,167.91,167.86,31.71924153]
[1730461624359,16.82364153,167.93,167.87,10.86884153]
[1730461624557,16.82364153,167.93,167.88,10.86884153]
[1730461626457,16.82364153,167.93,167.87,10.86884153]
[1730461627478,10.86884153,167.92,167.87,10.86884153]
[1730461627659,10.86884153,167.9,167.85,10.86884153]
[1730461629670,16.82504153,167.9,167.85,16.82644153]
[1730461629878,5.9562,167.9,167.86,10.86884153]
[1730461630068,5.9562,167.9,167.88,10.86884153]
[1730461631067,5.9552,167.92,167.88,10.86884153]
[1730461631574,16.82404153,167.92,167.86,10.86884153]
[1730461633476,10.86884153,167.9,167.85,14.8942]
[1730461633697,10.86884153,167.89,167.84,10.86884153]
[1730461634355,20.8432,167.92,167.83,12.0202]
[1730461634356,10.86884153,167.88,167.83,16.93074153]
[1730461634566,5.9569,167.87,167.83,16.93074153]
[1730461634973,16.82574153,167.87,167.82,25.76504153]
[1730461636864,5.9569,167.87,167.83,10.86884153]
[1730461637374,5.9569,167.87,167.84,10.86884153]
[1730461637579,5.9566,167.88,167.85,10.86884153]
[1730461637776,5.9563,167.89,167.86,10.86884153]
[1730461638465,10.86884153,167.89,167.84,10.86884153]
[1730461639480,10.86884153,167.88,167.83,10.86884153]
[1730461639682,10.86884153,167.87,167.82,31.72364153]
[1730461640477,5.9573,167.86,167.82,31.72364153]
[1730461641683,5.9571,167.87,167.84,10.86884153]
[1730461642077,16.82594153,167.87,167.82,10.86884153]
[1730461642264,10.86884153,167.84,167.79,6.1613]
[1730461642463,10.86884153,167.85,167.8,10.86884153]
[1730461642687,20.8495,167.87,167.82,10.86884153]
[1730461643469,15.0069,167.91,167.82,10.86884153]
[1730461643671,10.86884153,167.87,167.82,10.86884153]
[1730461645697,5.9573,167.86,167.82,10.86884153]
[1730461646369,16.82614153,167.86,167.81,10.86884153]
[1730461647087,10.86884153,167.85,167.8,31.72674153]
[1730461647666,5.9578,167.85,167.81,10.86884153]
[1730461649888,5.9578,167.85,167.81,16.82784153]
[1730461652896,10.86884153,167.87,167.82,10.86884153]
[1730461653478,10.86884153,167.87,167.81,16.82774153]
[1730461654702,5.9573,167.86,167.81,16.82774153]
[1730461654995,16.82614153,167.86,167.81,10.86884153]
[1730461656800,16.82614153,167.86,167.8,31.72664153]
[1730461658483,10.86884153,167.85,167.8,31.72664153]
[1730461659701,10.86884153,167.86,167.8,31.72664153]
[1730461660681,5.9577,167.85,167.8,31.72664153]
[1730461661510,5.9577,167.85,167.81,10.86884153]
[1730461663700,5.9577,167.85,167.8,31.72664153]
[1730461664687,5.9577,167.85,167.81,16.82784153]
[1730461665900,5.9573,167.86,167.81,16.82784153]
[1730461666485,16.82614153,167.86,167.81,16.82784153]
[1730461666890,10.86884153,167.85,167.8,31.72684153]
[1730461667490,16.82614153,167.86,167.81,10.86884153]
[1730461669689,10.86884153,167.85,167.8,25.76744153]
[1730461670107,5.958,167.84,167.8,25.76744153]
[1730461671608,5.958,167.84,167.79,22.98984153]
[1730461671791,5.958,167.84,167.79,17.03014153]
[1730461672187,5.958,167.84,167.79,22.98984153]
[1730461673404,5.958,167.84,167.79,17.03014153]
[1730461673609,16.82684153,167.84,167.78,23.05148562]
[1730461673805,10.86884153,167.83,167.78,5.96]
[1730461674825,16.82754153,167.82,167.77,26.38556133]
[1730461675206,16.82754153,167.82,167.77,32.34606133]
[1730461678410,16.82754153,167.82,167.77,26.38556133]
[1730461679502,10.86884153,167.81,167.77,15.5167198]
[1730461680694,16.82804153,167.81,167.77,15.5167198]
[1730461683610,10.86884153,167.79,167.77,0.6159198]
[1730461683993,10.86884153,167.78,167.77,0.6159198]
[1730461684209,10.86884153,167.79,167.77,0.6159198]
[1730461684711,10.86884153,167.8,167.77,0.6159198]
[1730461685425,10.86884153,167.79,167.77,0.6159198]
[1730461685992,5.9601,167.78,167.77,0.6159198]
[1730461687409,10.86884153,167.82,167.77,11.48476133]
[1730461688615,10.86884153,167.81,167.77,0.6159198]
[1730461689126,10.86884153,167.79,167.77,0.6159198]
[1730461689415,16.82814153,167.81,167.77,6.5763198]
[1730461689617,16.82764153,167.82,167.77,17.44516133]
[1730461690304,10.86884153,167.81,167.77,6.5763198]
[1730461690623,16.82814153,167.81,167.77,6.5763198]
[1730461691103,5.9593,167.81,167.77,17.44516133]
[1730461694625,5.9593,167.81,167.77,11.48476133]
[1730461694809,5.9593,167.81,167.77,0.6159198]
[1730461695008,16.82814153,167.81,167.77,0.6159198]
[1730461695309,5.9593,167.81,167.77,0.6159198]
[1730461695700,10.86884153,167.81,167.77,0.6159198]
[1730461697041,5.9594,167.8,167.77,0.6159198]
[1730461697201,16.82824153,167.8,167.77,0.6159198]
[1730461697524,10.86884153,167.79,167.77,0.6159198]
[1730461698334,16.82824153,167.8,167.77,0.6159198]
[1730461698629,10.86884153,167.79,167.77,0.6159198]
[1730461700231,10.86884153,167.8,167.77,0.6159198]
[1730461700928,10.86884153,167.79,167.77,0.6159198]
[1730461701638,5.9601,167.78,167.77,0.6159198]
[1730461703535,5.9597,167.8,167.77,0.6159198]
[1730461703737,16.82824153,167.81,167.77,0.6159198]
[1730461703940,16.82824153,167.81,167.77,6.5764198]
[1730461704120,5.9594,167.81,167.77,6.5764198]
[1730461704317,16.82824153,167.81,167.77,0.6159198]
[1730461704619,10.86884153,167.8,167.77,0.6159198]
[1730461706924,10.86884153,167.79,167.77,0.6159198]
[1730461708143,16.82884153,167.79,167.77,0.6159198]
[1730461708530,5.96,167.79,167.77,0.6159198]
[1730461710232,10.86884153,167.82,167.77,32.34646133]
[1730461710435,10.86884153,167.83,167.78,10.86884153]
[1730461711332,10.86884153,167.84,167.79,10.86884153]
[1730461711951,5.9584,167.83,167.79,10.86884153]
[1730461712344,5.9584,167.83,167.8,10.86884153]
[1730461712531,5.9581,167.84,167.8,10.86884153]
[1730461712941,10.86884153,167.85,167.78,20.8605]
[1730461712942,5.9577,167.85,167.81,10.86884153]
[1730461713347,10.86884153,167.87,167.81,10.86884153]
[1730461713532,5.9573,167.86,167.82,10.86884153]
[1730461714047,10.86884153,167.86,167.81,10.86884153]
[1730461714638,10.86884153,167.85,167.8,16.82804153]
[1730461715546,10.86884153,167.86,167.8,16.82804153]
[1730461715860,5.9577,167.85,167.8,16.82804153]
[1730461716031,16.82654153,167.85,167.8,16.82804153]
[1730461716348,10.86884153,167.84,167.79,10.86884153]
[1730461716550,10.86884153,167.84,167.79,16.82854153]
[1730461717439,16.82654153,167.85,167.8,10.86884153]
[1730461717645,5.9577,167.85,167.81,10.86884153]
[1730461718443,16.82654153,167.85,167.8,10.86884153]
[1730461719955,10.86884153,167.82,167.78,14.9004]
[1730461720647,10.86884153,167.81,167.78,14.9004]
[1730461721128,10.86884153,167.81,167.77,6.5764198]
[1730461721129,5.9594,167.8,167.77,0.6159198]
[1730461721446,10.86884153,167.81,167.77,0.6159198]
[1730461721649,16.82794153,167.81,167.77,0.6159198]
[1730461722055,10.86884153,167.8,167.77,0.6159198]
[1730461723535,5.9598,167.79,167.77,0.6159198]
[1730461724560,16.82864153,167.79,167.77,0.6159198]
[1730461728762,10.86884153,167.78,167.77,0.6159198]
[1730461729763,16.82894153,167.78,167.77,0.6159198]
[1730461730758,5.9601,167.78,167.77,0.6159198]
[1730461732659,5.9598,167.79,167.77,0.6159198]
[1730461733373,10.86884153,167.78,167.77,0.6159198]
[1730461734955,16.82894153,167.78,167.77,0.6159198]
[1730461739144,10.86884153,167.79,167.77,0.6159198]
[1730461739352,10.86884153,167.8,167.77,0.6159198]
[1730461739568,10.86884153,167.82,167.77,11.48476133]
[1730461740148,20.8544,167.83,167.77,0.6159198]
[1730461740149,10.86884153,167.81,167.77,0.6159198]
[1730461740758,5.9594,167.8,167.77,0.6159198]
[1730461741765,5.9591,167.81,167.77,17.44526133]
[1730461741951,16.82794153,167.81,167.77,0.6159198]
[1730461742156,10.86884153,167.8,167.77,0.6159198]
[1730461742452,10.86884153,167.79,167.77,0.6159198]
[1730461742844,5.9601,167.78,167.77,0.6159198]
[1730461743272,25.76614153,167.82,167.77,0.6159198]
[1730461743451,5.9591,167.81,167.77,0.6159198]
[1730461743654,5.9591,167.81,167.77,17.44506133]
[1730461744669,10.86884153,167.83,167.77,17.44506133]
[1730461744883,16.82684153,167.84,167.78,10.86884153]
[1730461745055,16.82684153,167.84,167.79,10.86884153]
[1730461745464,5.958,167.84,167.8,10.86884153]
[1730461745993,5.958,167.84,167.79,10.86884153]
[1730461746587,16.82684153,167.84,167.79,16.82834153]
[1730461747895,16.82684153,167.84,167.79,10.86884153]
[1730461748095,10.86884153,167.84,167.79,10.86884153]
[1730461748279,16.82684153,167.85,167.8,10.86884153]
[1730461748472,10.86884153,167.86,167.81,10.86884153]
[1730461748677,16.82544153,167.88,167.83,10.86884153]
[1730461748989,10.86884153,167.87,167.82,10.86884153]
[1730461749480,10.86884153,167.86,167.81,10.86884153]
[1730461749675,10.86884153,167.85,167.8,10.86884153]
[1730461749901,16.82654153,167.85,167.8,16.82794153]
[1730461750383,16.82654153,167.85,167.8,31.72654153]
[1730461750885,10.86884153,167.85,167.8,31.72654153]
[1730461751062,16.82624153,167.86,167.81,10.86884153]
[1730461751575,10.86884153,167.87,167.82,10.86884153]
[1730461752055,16.82594153,167.87,167.82,16.82734153]
[1730461752956,10.86884153,167.85,167.8,25.76744153]
[1730461753175,10.86884153,167.84,167.8,20.8577]
[1730461754855,16.82694153,167.84,167.8,20.8577]
[1730461756279,10.86884153,167.84,167.8,20.8577]
[1730461756471,16.82714153,167.84,167.8,14.8986]
[1730461756778,10.86884153,167.83,167.78,16.82874153]
[1730461757163,10.86884153,167.82,167.78,5.9599]
[1730461758083,10.86884153,167.83,167.78,16.82874153]
[1730461758282,16.82754153,167.83,167.78,16.82874153]
[1730461758657,10.86884153,167.82,167.78,5.9599]
[1730461761185,10.86884153,167.81,167.77,12.7342198]
[1730461761368,15.7932,167.88,167.77,12.7342198]
[1730461761369,10.86884153,167.8,167.77,12.7342198]
[1730461761570,10.86884153,167.8,167.77,0.6159198]
[1730461762593,10.86884153,167.82,167.77,32.34646133]
[1730461762884,10.86884153,167.83,167.78,10.86884153]
[1730461763465,10.86884153,167.83,167.78,16.82894153]
[1730461763466,16.82754153,167.83,167.78,16.82894153]
[1730461764083,10.86884153,167.81,167.77,15.5172198]
[1730461766609,5.9594,167.8,167.77,15.5172198]
[1730461767428,16.82804153,167.81,167.77,15.5172198]
[1730461769110,5.9592,167.81,167.77,26.38606133]
[1730461769338,5.9592,167.81,167.77,32.34656133]
[1730461771315,5.9587,167.82,167.78,10.86884153]
[1730461771899,16.82754153,167.82,167.77,32.34656133]
[1730461774198,10.86884153,167.79,167.77,0.6159198]
[1730461774594,20.8556,167.82,167.77,0.6159198]
[1730461774595,10.86884153,167.81,167.77,0.6159198]
[1730461775678,5.9594,167.8,167.77,0.6159198]
[1730461777184,16.82794153,167.81,167.77,6.5763198]
[1730461777389,5.9591,167.81,167.77,17.44516133]
[1730461777689,15.7932,167.88,167.79,10.86884153]
[1730461777690,5.9584,167.83,167.79,10.86884153]
[1730461781575,5.9584,167.83,167.79,16.82854153]
[1730461781795,5.9579,167.85,167.82,10.86884153]
[1730461782786,5.9573,167.86,167.82,10.86884153]
[1730461785290,16.82614153,167.86,167.81,16.82784153]
[1730461785802,5.9573,167.86,167.82,10.86884153]
[1730461786602,5.9573,167.86,167.82,16.82744153]
[1730461790600,10.86884153,167.88,167.83,10.86884153]
[1730461791488,5.9569,167.87,167.83,16.82724153]
[1730461791986,16.82544153,167.88,167.83,31.72324153]
[1730461792188,5.9566,167.88,167.85,10.86884153]
[1730461792396,10.86884153,167.9,167.85,10.86884153]
[1730461792591,16.82494153,167.9,167.85,10.86884153]
[1730461793304,5.9561,167.9,167.86,10.86884153]
[1730461793605,10.86884153,167.91,167.86,16.82594153]
[1730461793808,5.9556,167.91,167.87,10.86884153]
[1730461794102,5.9553,167.92,167.87,10.86884153]
[1730461794482,14.8865,167.94,167.87,10.86884153]
[1730461794483,10.86884153,167.94,167.89,10.86884153]
[1730461794888,10.86884153,167.95,167.9,10.86884153]
[1730461795090,16.82254153,167.96,167.91,10.86884153]
[1730461795496,16.82254153,167.96,167.91,16.82434153]
[1730461796714,10.86884153,167.97,167.91,16.82434153]
[1730461798387,5.9537,167.96,167.91,16.82434153]
[1730461799595,10.86884153,167.96,167.91,16.82434153]
[1730461800191,10.86884153,167.95,167.91,16.82434153]
[1730461801595,16.82304153,167.95,167.91,16.82434153]
[1730461802445,5.9542,167.95,167.91,16.82434153]
[1730461805899,10.86884153,167.95,167.91,16.82434153]
[1730461806413,10.86884153,167.95,167.91,10.86884153]
[1730461808208,16.82304153,167.95,167.91,10.86884153]
[1730461815310,5.9542,167.95,167.91,16.82414153]
[1730461816431,10.86884153,167.96,167.91,16.82414153]
[1730461816613,16.82264153,167.96,167.91,10.86884153]
[1730461816822,10.86884153,167.95,167.9,31.71434153]
[1730461817019,10.86884153,167.95,167.91,10.86884153]
[1730461817827,10.86884153,167.96,167.91,10.86884153]
[1730461820917,10.86884153,167.95,167.91,10.86884153]
[1730461821118,10.86884153,167.96,167.91,10.86884153]
[1730461821512,10.86884153,167.95,167.9,31.71434153]
[1730461824215,10.86884153,167.96,167.91,10.86884153]
[1730461826733,16.82294153,167.95,167.9,31.71434153]
[1730461836551,16.82294153,167.95,167.9,31.71444153]
[1730461841549,16.82294153,167.95,167.9,25.75854153]
[1730461841876,10.86884153,167.91,167.87,14.8919]
[1730461842153,10.86884153,167.91,167.86,16.82604153]
[1730461842346,10.86884153,167.9,167.85,39.14184153]
[1730461843249,10.86884153,167.9,167.85,22.89524153]
[1730461843747,5.9562,167.89,167.85,22.89524153]
[1730461845361,10.86884153,167.97,167.88,10.86884153]
[1730461845544,10.86884153,167.97,167.92,10.86884153]
[1730461846062,10.86884153,167.96,167.91,10.86884153]
[1730461846432,16.82224153,167.97,167.92,10.86884153]
[1730461847659,10.86884153,167.96,167.91,17.15244153]
[1730461848741,10.86884153,167.95,167.91,6.2836]
[1730461849353,10.86884153,167.96,167.91,37.99654153]
[1730461849567,16.82234153,167.97,167.93,10.86884153]
[1730461849853,16.82234153,167.97,167.92,16.82384153]
[1730461850854,10.86884153,167.96,167.92,5.955]
[1730461851460,10.86884153,167.97,167.92,10.86884153]
[1730461852142,10.86884153,167.99,167.94,10.86884153]
[1730461852951,16.82184153,167.99,167.94,16.82324153]
[1730461853558,16.82184153,167.99,167.95,10.86884153]
[1730461853755,10.86884153,168.01,167.96,10.86884153]
[1730461854947,5.9523,168.0,167.96,10.86884153]
[1730461855837,5.9523,168.0,167.97,10.86884153]
[1730461857567,10.86884153,168.02,167.98,10.86884153]
[1730461857863,10.86884153,168.03,167.98,10.86884153]
[1730461858351,10.86884153,168.02,167.98,10.86884153]
[1730461859984,16.82074153,168.02,167.98,10.86884153]
[1730461860268,16.82074153,168.02,167.97,16.82214153]
[1730461861466,5.9519,168.02,167.98,10.86884153]
[1730461861765,10.86884153,168.05,168.01,10.86884153]
[1730461861967,5.9506,168.05,168.01,10.86884153]
[1730461862153,5.9506,168.05,168.02,10.86884153]
[1730461863369,5.9506,168.05,168.01,10.86884153]
[1730461863876,5.9506,168.05,168.02,10.86884153]
[1730461864175,5.9502,168.07,168.03,10.86884153]
[1730461865245,10.86884153,168.1,168.06,10.86884153]
[1730461865753,10.86884153,168.08,168.04,10.86884153]
[1730461865967,10.86884153,168.08,168.03,10.86884153]
[1730461866175,10.86884153,168.07,168.03,10.86884153]
[1730461866395,10.86884153,168.08,168.03,10.86884153]
[1730461867157,10.86884153,168.09,168.04,10.86884153]
[1730461867380,10.86884153,168.07,168.03,10.86884153]
[1730461867588,10.86884153,168.07,168.02,25.74764153]
[1730461867960,10.86884153,168.07,168.03,10.86884153]
[1730461868375,10.86884153,168.08,168.03,10.86884153]
[1730461868680,5.9496,168.08,168.04,10.86884153]
[1730461868876,10.86884153,168.09,168.02,20.8304]
[1730461868877,5.9492,168.09,168.05,10.86884153]
[1730461869077,5.9492,168.09,168.06,10.86884153]
[1730461869272,5.9492,168.09,168.05,10.86884153]
[1730461869689,16.81804153,168.09,168.05,10.86884153]
[1730461870184,16.81804153,168.09,168.04,16.81964153]
[1730461870488,10.86884153,168.08,168.04,16.81964153]
[1730461870660,10.86884153,168.08,168.01,6.2175]
[1730461870661,10.86884153,168.05,168.01,6.2175]
[1730461870860,10.86884153,168.04,167.99,25.75014153]
[1730461871465,10.86884153,168.06,168.01,10.86884153]
[1730461871987,10.86884153,168.04,168.0,10.86884153]